fUST/lending_fUST_20240823
["ID","MTS","AMOUNT","RATE_DAILY","PERIOD"]
[335643267,1724398248037,-1246.02,0.00016712,2]
[335643269,1724398248046,-500.0,0.00016712,2]
[335643271,1724398248056,-387.78347306,0.00016712,2]
[335643273,1724398248065,-500.0,0.00016712,2]
[335643275,1724398248075,-500.0,0.00016712,2]
[335643277,1724398248084,-500.0,0.00016712,2]
[335643279,1724398248094,-1687.47,0.00016712,2]
[335643281,1724398248104,-500.0,0.00016712,2]
[335643283,1724398248114,-735.36,0.00016712,2]
[335643285,1724398248124,-500.0,0.00016712,2]
[335643287,1724398248134,-807.02,0.00016712,2]
[335643289,1724398248144,-613.43,0.00016712,2]
[335643291,1724398248158,-500.0,0.00016712,2]
[335643293,1724398248167,-500.0,0.00016712,2]
[335643295,1724398248177,-500.0,0.00016712,2]
[335643298,1724398248187,-500.0,0.00016712,2]
[335643300,1724398248197,-500.0,0.00016712,2]
[335643302,1724398248207,-1019.38,0.00016712,2]
[335643304,1724398248217,-500.0,0.00016712,2]
[335643306,1724398248227,-556.9,0.00016712,2]
[335643308,1724398248238,-500.0,0.00016712,2]
[335643310,1724398248248,-500.0,0.00016712,2]
[335643312,1724398248258,-500.57,0.00016712,2]
[335643314,1724398248268,-500.0,0.00016712,2]
[335643316,1724398248281,-500.0,0.00016712,2]
[335643318,1724398248290,-176.27516391,0.00016712,2]
[335643320,1724398248300,-3941.01,0.00016712,2]
[335643322,1724398248310,-500.0,0.00016712,2]
[335643325,1724398248320,-500.0,0.00016712,2]
[335643327,1724398248330,-500.0,0.00016712,2]
[335643329,1724398248340,-500.0,0.00016712,2]
[335643331,1724398248349,-500.0,0.00016712,2]
[335643333,1724398248359,-829.46,0.00016712,2]
[335643335,1724398248369,-500.0,0.00016712,2]
[335643337,1724398248379,-1186.27,0.00016712,2]
[335643339,1724398248388,-541.48619213,0.00016712,2]
[335643341,1724398248398,-500.0,0.00016712,2]
[335643343,1724398248408,-500.0,0.00016712,2]
[335643345,1724398248418,-500.0,0.00016712,2]
[335643347,1724398248427,-550.83,0.00016712,2]
[335643349,1724398248437,-500.0,0.00016712,2]
[335643351,1724398248446,-500.0,0.00016712,2]
[335643354,1724398248456,-518.36,0.00016712,2]
[335643356,1724398248466,-500.0,0.00016712,2]
[335643358,1724398248475,-768.86,0.00016712,2]
[335643360,1724398248485,-1390.21,0.00016712,2]
[335643362,1724398248495,-500.0,0.00016712,2]
[335643364,1724398248504,-1063.26,0.00016712,2]
[335643366,1724398248513,-500.0,0.00016712,2]
[335643368,1724398248524,-500.0,0.00016712,2]
[335643370,1724398248533,-751.58,0.00016712,2]
[335643372,1724398248543,-1507.16,0.00016712,2]
[335643374,1724398248553,-695.85,0.00016712,2]
[335643376,1724398248563,-500.0,0.00016712,2]
[335643378,1724398248573,-500.0,0.00016712,2]
[335643380,1724398248584,-531.56,0.00016712,2]
[335643382,1724398248593,-500.0,0.00016712,2]
[335643384,1724398248604,-563.5930556,0.00016712,2]
[335643386,1724398248614,-934.73,0.00016712,2]
[335643389,1724398248626,-500.0,0.00016712,2]
[335643391,1724398248636,-1196.57,0.00016712,2]
[335643393,1724398248646,-501.16474508,0.00016712,2]
[335643395,1724398248656,-500.0,0.00016712,2]
[335643397,1724398248666,-500.0,0.00016712,2]
[335643399,1724398248676,-500.0,0.00016712,2]
[335643401,1724398248686,-500.0,0.00016712,2]
[335643403,1724398248696,-500.0,0.00016712,2]
[335643405,1724398248706,-2371.0,0.00016712,2]
[335643407,1724398248715,-760.53,0.00016712,2]
[335643409,1724398248725,-1042.45,0.00016712,2]
[335643411,1724398248734,-1704.03,0.00016712,2]
[335643413,1724398248745,-500.0,0.00016712,2]
[335643415,1724398248754,-500.0,0.00016712,2]
[335643417,1724398248764,-500.77567429,0.00016712,2]
[335643420,1724398248774,-500.0,0.00016712,2]
[335643422,1724398248783,-500.0,0.00016712,2]
[335643424,1724398248793,-500.0,0.00016712,2]
[335643426,1724398248803,-1131.39,0.00016712,2]
[335643428,1724398248812,-1160.44,0.00016712,2]
[335643430,1724398248822,-500.0,0.00016712,2]
[335643432,1724398248832,-500.0,0.00016712,2]
[335643434,1724398248842,-500.0,0.00016712,2]
[335643436,1724398248852,-877.22,0.00016712,2]
[335643438,1724398248863,-500.0,0.00016712,2]
[335643440,1724398248873,-1974.73,0.00016712,2]
[335643442,1724398248883,-439.69,0.00016712,2]
[335643444,1724398248892,-500.0,0.00016712,2]
[335643446,1724398248902,-1373.05,0.00016712,2]
[335643448,1724398248911,-500.0,0.00016712,2]
[335643451,1724398248921,-500.0,0.00016712,2]
[335643453,1724398248931,-500.0,0.00016712,2]
[335643455,1724398248940,-500.0,0.00016712,2]
[335643457,1724398248949,-1579.0,0.00016712,2]
[335643459,1724398248959,-960.02,0.00016712,2]
[335643461,1724398248968,-500.0,0.00016712,2]
[335643463,1724398248978,-500.0,0.00016712,2]
[335643465,1724398248988,-500.0,0.00016712,2]
[335643467,1724398248998,-500.0,0.00016712,2]
[335643469,1724398249007,-500.0,0.00016712,2]
[335643471,1724398249017,-500.0,0.00016712,2]
[335643473,1724398249027,-607.01,0.00016712,2]
[335643475,1724398249037,-501.3556215,0.00016712,2]
[335643477,1724398249047,-1164.01,0.00016712,2]
[335643479,1724398249056,-500.0,0.00016712,2]
[335643481,1724398249066,-500.0,0.00016712,2]
[335643483,1724398249076,-810.46,0.00016712,2]
[335643486,1724398249086,-500.0,0.00016712,2]
[335643488,1724398249095,-818.13,0.00016712,2]
[335643490,1724398249105,-500.0,0.00016712,2]
[335643492,1724398249116,-500.0,0.00016712,2]
[335643494,1724398249125,-896.12,0.00016712,2]
[335643496,1724398249135,-501.53000753,0.00016712,2]
[335643498,1724398249144,-500.0,0.00016712,2]
[335643500,1724398249156,-872.75,0.00016712,2]
[335643502,1724398249165,-500.0,0.00016712,2]
[335643504,1724398249174,-695.83,0.00016712,2]
[335643506,1724398249184,-500.0,0.00016712,2]
[335643508,1724398249194,-500.0,0.00016712,2]
[335643510,1724398249204,-871.08,0.00016712,2]
[335643512,1724398249214,-837.67,0.00016712,2]
[335643514,1724398249224,-500.0,0.00016712,2]
[335643516,1724398249235,-500.0,0.00016712,2]
[335643519,1724398249246,-500.0,0.00016712,2]
[335643521,1724398249256,-500.0,0.00016712,2]
[335643523,1724398249266,-500.0,0.00016712,2]
[335643525,1724398249277,-500.0,0.00016712,2]
[335643527,1724398249286,-500.0,0.00016712,2]
[335643529,1724398249297,-500.0,0.00016712,2]
[335643531,1724398249307,-825.29,0.00016712,2]
[335643533,1724398249318,-500.0,0.00016712,2]
[335643535,1724398249328,-887.32,0.00016712,2]
[335643537,1724398249339,-500.0,0.00016712,2]
[335643539,1724398249350,-1054.55,0.00016712,2]
[335643542,1724398249360,-2909.38,0.00016712,2]
[335643563,1724398249554,-908.36,0.00016712,2]
[335643566,1724398249565,-1232.73,0.00016712,2]
[335643568,1724398249575,-784.51,0.00016712,2]
[335643570,1724398249584,-500.0,0.00016712,2]
[335643572,1724398249594,-500.0,0.00016712,2]
[335643574,1724398249604,-500.0,0.00016712,2]
[335643576,1724398249613,-2944.94,0.00016712,2]
[335643578,1724398249623,-409.99527106,0.00016712,2]
[335643580,1724398249633,-500.0,0.00016712,2]
[335643582,1724398249643,-1221.69,0.00016712,2]
[335643584,1724398249653,-723.04,0.00016712,2]
[335643586,1724398249663,-500.0,0.00016712,2]
[335643588,1724398249673,-500.0,0.00016712,2]
[335643590,1724398249683,-500.0,0.00016712,2]
[335643592,1724398249693,-771.03,0.00016712,2]
[335643594,1724398249703,-500.0,0.00016712,2]
[335643596,1724398249713,-500.0,0.00016712,2]
[335643598,1724398249722,-1070.93,0.00016712,2]
[335643600,1724398249732,-682.79,0.00016712,2]
[335643602,1724398249742,-540.64,0.00016712,2]
[335643604,1724398249751,-500.0,0.00016712,2]
[335643606,1724398249762,-500.0,0.00016712,2]
[335643608,1724398249772,-1487.4,0.00016712,2]
[335643610,1724398249782,-811.12,0.00016712,2]
[335643613,1724398249792,-4026.58,0.00016712,2]
[335643615,1724398249802,-1043.33,0.00016712,2]
[335643617,1724398249811,-650.87,0.00016712,2]
[335643619,1724398249821,-500.0,0.00016712,2]
[335643621,1724398249831,-500.0,0.00016712,2]
[335643623,1724398249841,-500.0,0.00016712,2]
[335643625,1724398249851,-500.0,0.00016712,2]
[335643627,1724398249862,-500.0,0.00016712,2]
[335643629,1724398249872,-500.0,0.00016712,2]
[335643631,1724398249882,-500.0,0.00016712,2]
[335643633,1724398249892,-500.0,0.00016712,2]
[335643635,1724398249902,-500.0,0.00016712,2]
[335643637,1724398249911,-521.07,0.00016712,2]
[335643639,1724398249921,-920.93,0.00016712,2]
[335643641,1724398249931,-721.57,0.00016712,2]
[335643643,1724398249941,-645.83,0.00016712,2]
[335643645,1724398249950,-625.54,0.00016712,2]
[335643647,1724398249960,-719.91,0.00016712,2]
[335643649,1724398249970,-650.29,0.00016712,2]
[335643651,1724398249981,-1673.02,0.00016712,2]
[335643653,1724398249991,-500.0,0.00016712,2]
[335643655,1724398250001,-1908.17,0.00016712,2]
[335643657,1724398250011,-531.53,0.00016712,2]
[335643659,1724398250021,-500.0,0.00016712,2]
[335643661,1724398250032,-500.0,0.00016712,2]
[335643663,1724398250042,-500.0,0.00016712,2]
[335643665,1724398250051,-938.17,0.00016712,2]
[335643667,1724398250061,-717.66,0.00016712,2]
[335643669,1724398250071,-694.74,0.00016712,2]
[335643671,1724398250080,-1069.37,0.00016712,2]
[335643673,1724398250090,-2360.17,0.00016712,2]
[335643675,1724398250099,-500.0,0.00016712,2]
[335643677,1724398250109,-769.7,0.00016712,2]
[335643679,1724398250119,-512.68,0.00016712,2]
[335643681,1724398250129,-500.0,0.00016712,2]
[335643683,1724398250138,-599.6,0.00016712,2]
[335643685,1724398250148,-1263.49,0.00016712,2]
[335643687,1724398250161,-500.0,0.00016712,2]
[335643689,1724398250170,-1084.53,0.00016712,2]
[335643691,1724398250180,-981.82,0.00016712,2]
[335643694,1724398250191,-659.2,0.00016712,2]
[335643696,1724398250201,-500.0,0.00016712,2]
[335643698,1724398250210,-840.72,0.00016712,2]
[335643700,1724398250220,-500.0,0.00016712,2]
[335643702,1724398250230,-695.92,0.00016712,2]
[335643703,1724398250239,-1034.21,0.00016712,2]
[335643704,1724398250249,-509.92522481,0.00016712,2]
[335643705,1724398250259,-520.25915572,0.00016712,2]
[335643706,1724398250268,-749.07,0.00016712,2]
[335643707,1724398250279,-500.0,0.00016712,2]
[335643708,1724398250289,-500.0,0.00016712,2]
[335643709,1724398250299,-748.28,0.00016712,2]
[335643710,1724398250308,-1348.81,0.00016712,2]
[335643711,1724398250318,-500.0,0.00016712,2]
[335643712,1724398250328,-6144.54,0.00016712,2]
[335643713,1724398250338,-617.4,0.00016712,2]
[335643714,1724398250348,-1432.16,0.00016712,2]
[335643715,1724398250357,-838.94,0.00016712,2]
[335643716,1724398250367,-500.0,0.00016712,2]
[335643717,1724398250376,-500.0,0.00016712,2]
[335643719,1724398250387,-500.0,0.00016712,2]
[335643721,1724398250397,-1850.66,0.00016712,2]
[335643723,1724398250407,-500.0,0.00016712,2]
[335643725,1724398250417,-785.02,0.00016712,2]
[335643727,1724398250426,-1000.0,0.00016712,2]
[335643729,1724398250436,-2149.7,0.00016712,2]
[335643731,1724398250445,-1438.75,0.00016712,2]
[335643733,1724398250455,-1716.86,0.00016712,2]
[335643735,1724398250465,-500.0,0.00016712,2]
[335643737,1724398250475,-4812.05,0.00016712,2]
[335643739,1724398250484,-500.0,0.00016712,2]
[335643741,1724398250493,-805.33,0.00016712,2]
[335643743,1724398250503,-500.0,0.00016712,2]
[335643746,1724398250513,-500.0,0.00016712,2]
[335643748,1724398250523,-1512.69,0.00016712,2]
[335643750,1724398250535,-598.77,0.00016712,2]
[335643752,1724398250544,-500.0,0.00016712,2]
[335643754,1724398250554,-1036.34,0.00016712,2]
[335643756,1724398250564,-3928.47,0.00016712,2]
[335643758,1724398250574,-500.0,0.00016712,2]
[335643760,1724398250583,-631.45,0.00016712,2]
[335643762,1724398250592,-500.0,0.00016712,2]
[335643764,1724398250602,-954.59,0.00016712,2]
[335643766,1724398250611,-500.0,0.00016712,2]
[335643768,1724398250621,-867.9,0.00016712,2]
[335643770,1724398250630,-1410.98,0.00016712,2]
[335643772,1724398250640,-500.0,0.00016712,2]
[335643774,1724398250649,-1029.93,0.00016712,2]
[335643776,1724398250659,-500.0,0.00016712,2]
[335643778,1724398250668,-1157.84,0.00016712,2]
[335643780,1724398250678,-519.67,0.00016712,2]
[335643782,1724398250687,-500.0,0.00016712,2]
[335643784,1724398250697,-182.78490922,0.00016712,2]
[335643787,1724398250707,-1821.98,0.00016712,2]
[335643789,1724398250717,-500.0,0.00016712,2]
[335643791,1724398250727,-500.0,0.00016712,2]
[335643793,1724398250737,-1574.16,0.00016712,2]
[335643795,1724398250747,-500.0,0.00016712,2]
[335643797,1724398250757,-1715.07,0.00016712,2]
[335643799,1724398250767,-500.0,0.00016712,2]
[335643801,1724398250776,-2456.63,0.00016712,2]
[335643803,1724398250786,-4106.82,0.00016712,2]
[335643805,1724398250795,-1090.64,0.00016712,2]
[335643807,1724398250805,-2035.43,0.00016712,2]
[335643809,1724398250816,-668.25,0.00016712,2]
[335643811,1724398250826,-500.0,0.00016712,2]
[335643813,1724398250835,-544.10641392,0.00016712,2]
[335643815,1724398250845,-500.0,0.00016712,2]
[335643817,1724398250854,-500.0,0.00016712,2]
[335643819,1724398250864,-1507.26,0.00016712,2]
[335643821,1724398250873,-2096.18,0.00016712,2]
[335643823,1724398250883,-500.0,0.00016712,2]
[335643825,1724398250893,-746.99,0.00016712,2]
[335643827,1724398250902,-1234.82,0.00016712,2]
[335643829,1724398250912,-500.0,0.00016712,2]
[335643831,1724398250921,-865.49,0.00016712,2]
[335643833,1724398250931,-550.03,0.00016712,2]
[335643835,1724398250941,-500.0,0.00016712,2]
[335643837,1724398250952,-525.95013454,0.00016712,2]
[335643839,1724398250961,-500.0,0.00016712,2]
[335643841,1724398250972,-500.0,0.00016712,2]
[335643843,1724398250982,-500.0,0.00016712,2]
[335643845,1724398250992,-1356.67,0.00016712,2]
[335643847,1724398251001,-500.0,0.00016712,2]
[335643849,1724398251011,-741.3,0.00016712,2]
[335643851,1724398251022,-500.0,0.00016712,2]
[335643853,1724398251032,-1309.52,0.00016712,2]
[335643856,1724398251042,-613.34,0.00016712,2]
[335643858,1724398251052,-3108.81,0.00016712,2]
[335643860,1724398251062,-780.3,0.00016712,2]
[335643862,1724398251072,-4914.91,0.00016712,2]
[335643864,1724398251082,-1032.28,0.00016712,2]
[335643866,1724398251092,-601.88,0.00016712,2]
[335643868,1724398251102,-286.55664773,0.00016712,2]
[335643870,1724398251111,-661.63,0.00016712,2]
[335643872,1724398251120,-500.0,0.00016712,2]
[335643874,1724398251130,-500.0,0.00016712,2]
[335643876,1724398251139,-1145.88,0.00016712,2]
[335643878,1724398251149,-3057.65,0.00016712,2]
[335643880,1724398251163,-780.59,0.00016712,2]
[335643882,1724398251172,-1536.07,0.00016712,2]
[335643884,1724398251181,-500.0,0.00016712,2]
[335643886,1724398251191,-500.0,0.00016712,2]
[335643888,1724398251202,-500.0,0.00016712,2]
[335643890,1724398251212,-500.0,0.00016712,2]
[335643892,1724398251221,-415.78811435,0.00016712,2]
[335643894,1724398251232,-500.0,0.00016712,2]
[335643896,1724398251242,-929.75,0.00016712,2]
[335643898,1724398251252,-500.0,0.00016712,2]
[335643900,1724398251262,-1499.21,0.00016712,2]
[335643902,1724398251272,-500.0,0.00016712,2]
[335643904,1724398251282,-939.51,0.00016712,2]
[335643907,1724398251292,-934.77,0.00016712,2]
[335643908,1724398251301,-500.0,0.00016712,2]
[335643910,1724398251311,-500.0,0.00016712,2]
[335643912,1724398251320,-500.0,0.00016712,2]
[335643914,1724398251330,-500.0,0.00016712,2]
[335643916,1724398251340,-500.0,0.00016712,2]
[335643918,1724398251349,-722.37,0.00016712,2]
[335643920,1724398251359,-4413.59,0.00016712,2]
[335643922,1724398251369,-1292.02,0.00016712,2]
[335643924,1724398251379,-500.0,0.00016712,2]
[335643926,1724398251388,-500.0,0.00016712,2]
[335643928,1724398251398,-500.0,0.00016712,2]
[335643930,1724398251407,-663.97,0.00016712,2]
[335643932,1724398251417,-597.48533775,0.00016712,2]
[335643935,1724398251427,-500.0,0.00016712,2]
[335643936,1724398251437,-500.0,0.00016712,2]
[335643937,1724398251446,-500.0,0.00016712,2]
[335643938,1724398251455,-500.0,0.00016712,2]
[335643939,1724398251465,-500.0,0.00016712,2]
[335643940,1724398251474,-3045.8,0.00016712,2]
[335643941,1724398251484,-606.69,0.00016712,2]
[335643942,1724398251494,-500.0,0.00016712,2]
[335643943,1724398251503,-2331.4,0.00016712,2]
[335643944,1724398251513,-500.0,0.00016712,2]
[335643945,1724398251523,-1102.26,0.00016712,2]
[335643946,1724398251534,-789.51,0.00016712,2]
[335643947,1724398251543,-500.0,0.00016712,2]
[335643948,1724398251553,-500.0,0.00016712,2]
[335643949,1724398251562,-882.14,0.00016712,2]
[335643950,1724398251571,-500.0,0.00016712,2]
[335643951,1724398251581,-500.0,0.00016712,2]
[335643952,1724398251591,-1371.52,0.00016712,2]
[335643953,1724398251600,-961.5,0.00016712,2]
[335643954,1724398251610,-500.0,0.00016712,2]
[335643955,1724398251620,-508.1556924,0.00016712,2]
[335643956,1724398251629,-4298.02,0.00016712,2]
[335643957,1724398251638,-500.0,0.00016712,2]
[335643958,1724398251648,-3320.9,0.00016712,2]
[335643959,1724398251658,-1017.06,0.00016712,2]
[335643960,1724398251667,-500.0,0.00016712,2]
[335643961,1724398251676,-1001.71,0.00016712,2]
[335643962,1724398251686,-2468.69,0.00016712,2]
[335643963,1724398251695,-572.73510506,0.00016712,2]
[335643964,1724398251705,-500.0,0.00016712,2]
[335643965,1724398251715,-500.0,0.00016712,2]
[335643966,1724398251725,-414.52,0.00016712,2]
[335643967,1724398251735,-500.0,0.00016712,2]
[335643968,1724398251745,-240.65,0.00016712,2]
[335643969,1724398251754,-500.0,0.00016712,2]
[335643970,1724398251763,-500.0,0.00016712,2]
[335643971,1724398251773,-200.29199372,0.00016773,2]
[335643972,1724398251791,-500.0,0.00016773,2]
[335643973,1724398251800,-5073.93696179,0.00016798,2]
[335643975,1724398251810,-150.112233,0.000168,2]
[335643977,1724398251819,-150.112233,0.000169,2]
[335643979,1724398251829,-3381.76076519,0.00016953,2]
[335643981,1724398251838,-500.0,0.00016973,2]
[335643983,1724398251848,-500.0,0.00016973,2]
[335643985,1724398251858,-500.0,0.00016973,2]
[335643993,1724398251919,-500.0,0.00016973,2]
[335643995,1724398251929,-500.0,0.00016973,2]
[335643997,1724398251938,-500.0,0.00016986,2]
[335643999,1724398251947,-315.91567911,0.00016986,2]
[335644001,1724398251957,-500.0,0.00016986,2]
[335644003,1724398251967,-500.0,0.00016986,2]
[335644005,1724398251977,-431.8913985,0.00016986,2]
[335644007,1724398251987,-500.0,0.00016986,2]
[335644009,1724398251996,-500.0,0.00016986,2]
[335644011,1724398252005,-500.0,0.00016986,2]
[335644013,1724398252015,-500.0,0.00016986,2]
[335644015,1724398252024,-518.33643197,0.00016986,2]
[335644017,1724398252037,-317.68978065,0.00016986,2]
[335644019,1724398252046,-500.0,0.00016986,2]
[335644021,1724398252055,-725.36,0.00016986,2]
[335644023,1724398252065,-504.29305614,0.00016986,2]
[335644025,1724398252075,-500.0,0.00016986,2]
[335644027,1724398252084,-500.0,0.00016986,2]
[335644029,1724398252093,-253.46411956,0.00016986,2]
[335644031,1724398252102,-500.0,0.00016986,2]
[335644033,1724398252111,-500.0,0.00016986,2]
[335644035,1724398252121,-490.69445818,0.00016986,2]
[335644037,1724398252130,-500.0,0.00016986,2]
[335644039,1724398252139,-500.0,0.00016986,2]
[335644041,1724398252148,-500.0,0.00016986,2]
[335644043,1724398252161,-500.0,0.00016986,2]
[335644045,1724398252171,-500.0,0.00016986,2]
[335644047,1724398252180,-500.0,0.00016986,2]
[335644049,1724398252189,-500.0,0.00016986,2]
[335644051,1724398252200,-500.0,0.00016986,2]
[335644053,1724398252209,-594.98,0.00016986,2]
[335644055,1724398252219,-819.25,0.00016986,2]
[335644057,1724398252229,-500.0,0.00016986,2]
[335644059,1724398252238,-508.53971992,0.00016986,2]
[335644061,1724398252247,-500.0,0.00016986,2]
[335644063,1724398252256,-1005.17,0.00016986,2]
[335644066,1724398252265,-500.0,0.00016986,2]
[335644068,1724398252275,-500.0,0.00016986,2]
[335644070,1724398252296,-504.75300538,0.00016986,2]
[335644071,1724398252305,-500.0,0.00016986,2]
[335644073,1724398252314,-500.0,0.00016986,2]
[335644076,1724398252324,-500.0,0.00016986,2]
[335644077,1724398252333,-500.0,0.00016986,2]
[335644079,1724398252342,-1141.12,0.00016986,2]
[335644081,1724398252350,-529.51661079,0.00016986,2]
[335644084,1724398252360,-500.0,0.00016986,2]
[335644085,1724398252369,-562.89,0.00016986,2]
[335644087,1724398252378,-500.0,0.00016986,2]
[335644090,1724398252387,-500.0,0.00016986,2]
[335644092,1724398252396,-500.0,0.00016986,2]
[335644094,1724398252406,-151.05312764,0.00016986,2]
[335644096,1724398252415,-500.0,0.00016986,2]
[335644098,1724398252426,-500.0,0.00016986,2]
[335644100,1724398252435,-500.0,0.00016986,2]
[335644102,1724398252444,-599.48671467,0.00016986,2]
[335644104,1724398252453,-500.0,0.00016986,2]
[335644106,1724398252463,-829.81,0.00016986,2]
[335644108,1724398252472,-500.0,0.00016986,2]
[335644110,1724398252481,-500.0,0.00016986,2]
[335644112,1724398252490,-500.0,0.00016986,2]
[335644114,1724398252499,-500.0,0.00016986,2]
[335644116,1724398252509,-500.0,0.00016986,2]
[335644118,1724398252518,-500.0,0.00016986,2]
[335644120,1724398252530,-500.0,0.00016986,2]
[335644122,1724398252539,-500.0,0.00016986,2]
[335644124,1724398252550,-500.0,0.00016986,2]
[335644126,1724398252559,-500.0,0.00016986,2]
[335644128,1724398252569,-500.0,0.00016986,2]
[335644130,1724398252580,-500.0,0.00016986,2]
[335644132,1724398252589,-500.0,0.00016986,2]
[335644134,1724398252599,-500.0,0.00016986,2]
[335644136,1724398252609,-500.0,0.00016986,2]
[335644138,1724398252618,-500.0,0.00016986,2]
[335644140,1724398252628,-500.0,0.00016986,2]
[335644142,1724398252638,-500.0,0.00016986,2]
[335644144,1724398252648,-500.0,0.00016986,2]
[335644146,1724398252657,-200.0,0.00016986,2]
[335644148,1724398252667,-738.27,0.00016986,2]
[335644150,1724398252676,-500.0,0.00016986,2]
[335644152,1724398252686,-618.26,0.00016986,2]
[335644154,1724398252695,-500.0,0.00016986,2]
[335644156,1724398252705,-500.0,0.00016986,2]
[335644158,1724398252715,-1075.78,0.00016986,2]
[335644160,1724398252725,-500.0,0.00016986,2]
[335644161,1724398252737,-500.0,0.00016986,2]
[335644162,1724398252746,-500.0,0.00016986,2]
[335644163,1724398252756,-500.0,0.00016986,2]
[335644164,1724398252765,-794.11,0.00016986,2]
[335644165,1724398252775,-500.0,0.00016986,2]
[335644166,1724398252789,-541.47,0.00016986,2]
[335644167,1724398252799,-500.0,0.00016986,2]
[335644168,1724398252808,-500.0,0.00016986,2]
[335644169,1724398252818,-500.0,0.00016986,2]
[335644170,1724398252828,-577.3,0.00016986,2]
[335644171,1724398252838,-500.0,0.00016986,2]
[335644172,1724398252848,-500.0,0.00016986,2]
[335644173,1724398252858,-500.0,0.00016986,2]
[335644174,1724398252868,-500.0,0.00016986,2]
[335644176,1724398252877,-500.0,0.00016986,2]
[335644177,1724398252886,-500.0,0.00016986,2]
[335644179,1724398252896,-500.0,0.00016986,2]
[335644181,1724398252905,-606.94,0.00016986,2]
[335644183,1724398252915,-602.03514199,0.00016986,2]
[335644185,1724398252924,-500.0,0.00016986,2]
[335644187,1724398252934,-838.47,0.00016986,2]
[335644189,1724398252943,-500.0,0.00016986,2]
[335644191,1724398252952,-500.0,0.00016986,2]
[335644193,1724398252962,-500.0,0.00016986,2]
[335644196,1724398252973,-541.04,0.00016986,2]
[335644198,1724398252985,-500.0,0.00016986,2]
[335644200,1724398252994,-500.0,0.00016986,2]
[335644202,1724398253004,-583.63,0.00016986,2]
[335644204,1724398253014,-500.0,0.00016986,2]
[335644206,1724398253024,-500.0,0.00016986,2]
[335644208,1724398253035,-500.0,0.00016986,2]
[335644210,1724398253045,-957.87,0.00016986,2]
[335644212,1724398253055,-1011.34,0.00016986,2]
[335644214,1724398253064,-500.0,0.00016986,2]
[335644216,1724398253074,-530.27,0.00016986,2]
[335644218,1724398253084,-687.63,0.00016986,2]
[335644220,1724398253093,-500.0,0.00016986,2]
[335644222,1724398253103,-500.0,0.00016986,2]
[335644224,1724398253113,-500.0,0.00016986,2]
[335644226,1724398253122,-500.0,0.00016986,2]
[335644228,1724398253131,-500.0,0.00016986,2]
[335644230,1724398253141,-568.86,0.00016986,2]
[335644232,1724398253153,-822.04,0.00016986,2]
[335644234,1724398253163,-500.0,0.00016986,2]
[335644236,1724398253173,-500.0,0.00016986,2]
[335644238,1724398253183,-500.0,0.00016986,2]
[335644240,1724398253193,-658.88,0.00016986,2]